bitfinex-derivatives/quotes_BTCF0:USTF0_20250127
["timestamp","ask_amount","ask_price","bid_price","bid_amount"]
[1738014738477,0.197677,101210.0,101200.0,0.1]
[1738014738674,1.20006474,101210.0,101200.0,0.1]
[1738014738875,1.39446474,101210.0,101200.0,0.04045253]
[1738014739076,1.28898774,101210.0,101170.0,2.08672086]
[1738014739379,0.69892987,101180.0,101170.0,2.08672086]
[1738014739577,0.69892987,101180.0,101170.0,1.88748641]
[1738014739776,0.69892987,101180.0,101170.0,0.38748641]
[1738014740485,0.69792987,101180.0,101170.0,0.38748641]
[1738014740674,0.69692987,101180.0,101170.0,0.38748641]
[1738014740881,0.558522,101190.0,101170.0,0.74828641]
[1738014741074,0.197722,101190.0,101180.0,0.197736]
[1738014741574,0.197722,101190.0,101180.0,0.558536]
[1738014741769,0.59942435,101190.0,101180.0,0.558536]
[1738014742185,0.59942435,101190.0,101180.0,0.197736]
[1738014742389,0.59942435,101190.0,101170.0,0.0951]
[1738014742390,0.76250235,101190.0,101170.0,0.0951]
[1738014742680,0.33812987,101180.0,101170.0,0.292853]
[1738014743482,0.33812987,101180.0,101170.0,0.290853]
[1738014743697,0.69892987,101180.0,101170.0,0.0931]
[1738014743887,0.50119387,101180.0,101160.0,0.744072]
[1738014744085,0.33814987,101170.0,101160.0,0.744072]
[1738014744481,0.197756,101170.0,101160.0,0.744072]
[1738014745188,0.197756,101170.0,101160.0,0.383272]
[1738014745578,0.68884235,101180.0,101160.0,0.383272]
[1738014745784,0.55868748,101180.0,101170.0,0.197756]
[1738014746984,0.00014848,101180.0,101170.0,0.558556]
[1738014747284,0.00014848,101180.0,101170.0,0.69894987]
[1738014747887,0.00014848,101180.0,101170.0,0.69994987]
[1738014748693,0.26130848,101190.0,101180.0,0.197735]
[1738014748986,0.0014828,101210.0,101200.0,0.197696]
[1738014749187,0.0014828,101210.0,101200.0,0.558496]
[1738014749388,0.0014828,101210.0,101200.0,2.058496]
[1738014750785,0.20487645,101210.0,101200.0,2.058496]
[1738014750991,0.90374732,101210.0,101190.0,0.29405848]
[1738014751293,0.90474732,101210.0,101190.0,0.65485848]
[1738014751590,0.54494732,101210.0,101200.0,0.197696]
[1738014752388,0.197696,101200.0,101190.0,0.19786148]
[1738014752583,0.43078987,101200.0,101190.0,0.19786148]
[1738014753184,0.290396,101200.0,101190.0,0.55866148]
[1738014753385,0.290396,101200.0,101190.0,0.55966148]
[1738014753698,0.40255745,101210.0,101200.0,0.197696]
[1738014754693,0.28633251,101210.0,101200.0,0.197696]
[1738014754990,0.42672638,101210.0,101200.0,0.197696]
[1738014755884,0.42772638,101210.0,101200.0,0.197696]
[1738014756382,0.42872638,101210.0,101200.0,0.197696]
[1738014757193,0.59184538,101210.0,101190.0,0.00014848]
[1738014757390,0.33808987,101200.0,101190.0,0.55865548]
[1738014758288,0.43028987,101200.0,101190.0,0.19785548]
[1738014759387,0.43028987,101200.0,101190.0,0.55965548]
[1738014759794,0.43028987,101200.0,101190.0,0.55865548]
[1738014759993,0.43028987,101200.0,101190.0,0.55965548]
[1738014760185,0.197696,101200.0,101190.0,0.55965548]
[1738014760384,0.33808987,101200.0,101190.0,0.55965548]
[1738014761391,0.34782166,101200.0,101190.0,0.55965548]
[1738014761696,0.20742779,101200.0,101190.0,0.55965548]
[1738014761995,0.2945965,101200.0,101190.0,0.55965548]
[1738014764097,0.28486471,101200.0,101190.0,0.55965548]
[1738014766798,0.197696,101200.0,101190.0,0.55965548]
[1738014768007,0.3832331,101210.0,101200.0,0.197682]
[1738014768299,0.1855681,101210.0,101200.0,0.558482]
[1738014769098,0.17567182,101210.0,101200.0,0.558482]
[1738014769485,0.17667182,101210.0,101200.0,0.558482]
[1738014769692,0.27047583,101210.0,101200.0,0.558482]
[1738014769995,0.27147583,101210.0,101200.0,0.558482]
[1738014770596,0.17767182,101210.0,101200.0,0.558482]
[1738014770796,0.0034828,101210.0,101200.0,0.558482]
[1738014771801,0.0034828,101210.0,101200.0,0.69919586]
[1738014772301,0.0034828,101210.0,101200.0,0.70899206]
[1738014772500,0.0034828,101210.0,101200.0,2.20899206]
[1738014772990,0.002,101210.0,101200.0,2.20899206]
[1738014773703,0.002,101210.0,101200.0,2.0682782]
[1738014774288,0.002,101210.0,101200.0,2.20899206]
[1738014774499,0.002,101210.0,101200.0,2.0682782]
[1738014775305,0.002,101210.0,101200.0,2.20899206]
[1738014780098,0.08746775,101220.0,101210.0,0.197663]
[1738014780292,0.17418902,101240.0,101230.0,0.197624]
[1738014780495,0.17418902,101240.0,101230.0,1.05993786]
[1738014780810,0.20569668,101250.0,101240.0,0.197605]
[1738014781005,0.20569668,101250.0,101240.0,0.745505]
[1738014781606,0.20569668,101250.0,101240.0,0.844005]
[1738014782900,0.20869668,101250.0,101240.0,0.844005]
[1738014783413,0.32455421,101250.0,101240.0,0.844005]
[1738014783717,0.33155421,101250.0,101240.0,0.845005]
[1738014784300,0.66985307,101250.0,101240.0,0.559405]
[1738014784499,1.03065307,101250.0,101240.0,0.001]
[1738014784703,0.197604,101240.0,101230.0,0.00014848]
[1738014784900,0.69911786,101240.0,101230.0,0.00014848]
[1738014786304,0.34231786,101240.0,101230.0,0.19777248]
[1738014786610,0.34431786,101240.0,101230.0,0.19777248]
[1738014786808,0.70511786,101240.0,101230.0,0.19777248]
[1738014787509,0.34431786,101240.0,101230.0,0.19777248]
[1738014787807,0.203604,101240.0,101230.0,0.19777248]
[1738014788006,0.006,101240.0,101230.0,0.55857248]
[1738014788706,0.006,101240.0,101230.0,2.05857248]
[1738014789909,0.006,101240.0,101230.0,2.25137248]
[1738014790109,0.006,101240.0,101230.0,2.34877248]
[1738014790816,0.006,101240.0,101230.0,2.48948634]
[1738014791022,0.006,101240.0,101230.0,2.34877248]
[1738014791512,0.003,101240.0,101230.0,2.48948634]
[1738014792104,0.001,101240.0,101230.0,2.48948634]
[1738014792307,0.001,101240.0,101230.0,2.78948634]
[1738014792508,0.14563574,101260.0,101250.0,0.197582]
[1738014792710,0.14563574,101260.0,101250.0,1.01286245]
[1738014794215,0.14663574,101260.0,101250.0,1.01286245]
[1738014794603,0.43760238,101280.0,101250.0,1.16208443]
[1738014794803,0.43760238,101280.0,101270.0,1.05962743]
[1738014795122,0.14510529,101290.0,101280.0,0.197524]
[1738014795304,0.14510529,101290.0,101280.0,0.558324]
[1738014797019,0.14510529,101290.0,101280.0,0.69880843]
[1738014797618,0.14610529,101290.0,101280.0,0.69880843]
[1738014798227,0.10162997,101300.0,101280.0,0.64176886]
[1738014798404,0.10162997,101300.0,101290.0,0.88748843]
[1738014798619,0.10162997,101300.0,101290.0,0.98408843]
[1738014798812,0.10162997,101300.0,101290.0,0.747004]
[1738014799006,0.10162997,101300.0,101290.0,0.652104]
[1738014799213,0.29911497,101300.0,101290.0,0.558304]
[1738014799419,0.49031497,101300.0,101290.0,0.558304]
[1738014800110,0.49031497,101300.0,101290.0,0.560304]
[1738014800309,0.29282997,101300.0,101290.0,0.560304]
[1738014800917,0.10162997,101300.0,101290.0,0.70078843]
[1738014801221,0.10162997,101300.0,101290.0,0.70178843]
[1738014801516,0.10162997,101300.0,101290.0,2.20178843]
[1738014802618,0.10162997,101300.0,101290.0,0.70178843]
[1738014803711,0.10162997,101300.0,101290.0,0.561304]
[1738014804112,0.10162997,101300.0,101290.0,0.70178843]
[1738014805617,0.2919,101320.0,101310.0,0.197465]
[1738014805818,0.197429,101330.0,101320.0,0.197446]
[1738014806017,0.387429,101330.0,101320.0,0.558246]
[1738014807129,0.197446,101320.0,101310.0,0.19761148]
[1738014807427,0.394434,101330.0,101320.0,0.197446]
[1738014808221,0.387434,101330.0,101320.0,0.197446]
[1738014808726,0.19,101330.0,101320.0,0.558246]
[1738014809025,0.003,101330.0,101320.0,0.69873043]
[1738014809525,0.00014848,101340.0,101330.0,0.197426]
[1738014809731,0.00014848,101340.0,101330.0,0.79831043]
[1738014810821,0.00014848,101340.0,101330.0,0.657826]
[1738014811321,0.00314848,101340.0,101330.0,0.657826]
[1738014811721,0.01014848,101340.0,101330.0,0.658826]
[1738014812027,0.0969,101360.0,101350.0,0.197387]
[1738014812225,0.0969,101360.0,101350.0,0.918987]
[1738014812626,0.0969,101360.0,101350.0,2.418987]
[1738014813223,0.1059,101360.0,101350.0,2.419987]
[1738014813623,0.1059,101360.0,101350.0,0.559187]
[1738014814218,0.1109,101360.0,101350.0,0.560187]
[1738014814418,0.1019,101360.0,101350.0,0.559187]
[1738014814726,0.1109,101360.0,101350.0,0.560187]
[1738014814928,0.1059,101360.0,101350.0,0.559187]
[1738014815122,0.1099,101360.0,101350.0,0.559187]
[1738014815323,0.013,101360.0,101350.0,0.559187]
[1738014816324,0.013,101360.0,101350.0,1.06047143]
[1738014816725,0.013,101360.0,101350.0,1.07060094]
[1738014817138,4.848e-05,101370.0,101360.0,0.197368]
[1738014817431,4.848e-05,101370.0,101360.0,0.79695243]
[1738014817629,0.0014804,101380.0,101370.0,0.197348]
[1738014817821,0.0014804,101380.0,101370.0,0.69863243]
[1738014818024,0.0998,101390.0,101380.0,0.197329]
[1738014818238,0.297296,101400.0,101380.0,0.558129]
[1738014818428,0.297296,101400.0,101390.0,0.55811]
[1738014819621,0.658096,101400.0,101380.0,1.86094848]
[1738014819822,0.658096,101400.0,101380.0,2.05826848]
[1738014820230,0.297296,101400.0,101380.0,2.05826848]
[1738014820521,0.002,101390.0,101380.0,2.05926848]
[1738014820928,0.197309,101390.0,101380.0,2.05926848]
[1738014821136,0.197309,101390.0,101380.0,0.55926848]
[1738014821328,0.197309,101390.0,101380.0,0.56898845]
[1738014821722,0.197309,101390.0,101380.0,0.56998845]
[1738014824431,0.297296,101400.0,101390.0,0.19731]
[1738014824637,0.297296,101400.0,101390.0,0.55811]
[1738014825135,0.658096,101400.0,101390.0,0.19731]
[1738014825332,0.297296,101400.0,101390.0,0.55811]
[1738014825537,0.298296,101400.0,101390.0,0.55811]
[1738014826231,0.300296,101400.0,101390.0,0.55811]
[1738014826631,0.300296,101400.0,101390.0,0.3608]
[1738014826832,0.197309,101390.0,101380.0,0.56798845]
[1738014827240,0.103,101400.0,101380.0,0.37066845]
[1738014827536,0.103,101400.0,101390.0,0.69859343]
[1738014827741,0.103,101400.0,101390.0,0.558109]
[1738014827934,0.103,101400.0,101390.0,0.652009]
[1738014829029,0.102,101400.0,101390.0,0.652009]
[1738014829737,0.1,101400.0,101390.0,0.652009]
[1738014830131,0.101,101400.0,101390.0,0.652009]
[1738014830742,0.30029,101400.0,101390.0,0.558109]
[1738014831641,0.19731,101390.0,101380.0,0.66136845]
[1738014831843,0.19731,101390.0,101380.0,0.66048845]
[1738014832433,0.19731,101390.0,101380.0,0.56798845]
[1738014832434,0.29075449,101390.0,101380.0,0.56798845]
[1738014832633,0.29075449,101390.0,101380.0,0.37166845]
[1738014832634,0.38525449,101390.0,101380.0,0.37166845]
[1738014833136,0.38525449,101390.0,101380.0,0.37266845]
[1738014833331,0.29181,101390.0,101380.0,0.56999745]
[1738014834341,0.0945,101390.0,101380.0,0.56999745]
[1738014834544,0.29181,101390.0,101380.0,0.56999745]
[1738014835041,0.29181,101390.0,101380.0,0.01186845]
[1738014835234,0.38525449,101390.0,101380.0,0.20919745]
[1738014835537,0.29181,101390.0,101380.0,0.20919745]
[1738014837146,0.45424449,101390.0,101380.0,0.00214848]
[1738014837335,0.55424449,101400.0,101380.0,0.36294848]
[1738014837541,0.39074649,101400.0,101390.0,0.19731]
[1738014838039,0.19731,101390.0,101380.0,0.36148731]
[1738014838232,0.29075449,101390.0,101380.0,0.55880631]
[1738014838432,0.29075449,101390.0,101380.0,0.55980631]
[1738014839243,0.4608,101400.0,101380.0,0.4549318]
[1738014839443,0.19289898,101410.0,101390.0,0.45424449]
[1738014839743,0.00147986,101420.0,101410.0,0.197271]
[1738014839945,0.00147986,101420.0,101410.0,0.558071]
[1738014840735,0.09492435,101420.0,101410.0,0.558071]
[1738014840939,0.197271,101410.0,101400.0,0.19743248]
[1738014841143,0.29071549,101410.0,101400.0,0.19743248]
[1738014841742,0.65151549,101410.0,101400.0,0.00014848]
[1738014842241,0.65251549,101410.0,101400.0,0.00014848]
[1738014842637,0.69927298,101410.0,101400.0,0.00014848]
[1738014842837,0.89907298,101410.0,101400.0,0.00014848]
[1738014843237,0.70180198,101410.0,101390.0,0.17554736]
[1738014843442,0.69829198,101400.0,101390.0,0.17554736]
[1738014844544,0.69829198,101400.0,101390.0,0.17754736]
[1738014845446,0.19729,101400.0,101390.0,0.73565736]
[1738014845751,0.19729,101400.0,101390.0,0.56011]
[1738014846043,0.19729,101400.0,101390.0,0.55911]
[1738014846245,0.19829,101400.0,101390.0,0.55911]
[1738014846832,0.33849198,101400.0,101390.0,0.19831]
[1738014847036,0.33949198,101400.0,101390.0,0.19731]
[1738014848045,0.19929,101400.0,101390.0,0.19731]
[1738014849050,0.19929,101400.0,101390.0,0.55811]
[1738014851553,0.34391187,101400.0,101390.0,0.55811]
[1738014851850,0.34391187,101400.0,101390.0,0.19731]
[1738014853250,0.34391187,101400.0,101390.0,0.55811]
[1738014855551,0.19731,101390.0,101380.0,0.37394184]
[1738014855748,0.19731,101390.0,101380.0,0.37302184]
[1738014856258,0.19731,101390.0,101380.0,0.73382184]
[1738014856454,0.00017356,101390.0,101380.0,0.73382184]
[1738014856754,0.00017356,101390.0,101380.0,0.87402382]
[1738014857355,0.14562187,101400.0,101390.0,0.19731]
[1738014857553,0.14462187,101400.0,101390.0,0.84381]
[1738014857859,0.63502786,101410.0,101390.0,0.78670198]
[1738014858045,0.63502786,101410.0,101390.0,2.1465]
[1738014858247,0.19729,101400.0,101390.0,1.983]
[1738014858454,0.63502986,101410.0,101400.0,0.19729]
[1738014858946,0.43081542,101410.0,101400.0,0.19729]
[1738014859147,0.19742748,101410.0,101400.0,0.19729]
[1738014859656,0.19842748,101410.0,101400.0,0.55809]
[1738014859957,0.19942748,101410.0,101400.0,0.55809]
[1738014860657,0.19942748,101410.0,101400.0,0.19729]
[1738014860857,0.00214848,101410.0,101400.0,0.55809]
[1738014861459,0.00314848,101410.0,101400.0,0.55809]
[1738014862159,0.00314848,101410.0,101400.0,0.56795481]
[1738014864256,0.00314848,101410.0,101400.0,0.70815679]
[1738014864762,0.14857368,101410.0,101400.0,0.56795481]
[1738014865367,0.34584468,101410.0,101400.0,0.56795481]
[1738014865957,0.14857368,101410.0,101400.0,0.56795481]
[1738014867353,0.34584468,101410.0,101400.0,0.56795481]
[1738014867755,0.43926316,101410.0,101400.0,0.56795481]
[1738014869668,0.43926316,101410.0,101400.0,0.55809]
[1738014870766,0.14857368,101410.0,101400.0,0.55809]
[1738014870958,0.14857368,101410.0,101400.0,0.65150848]
[1738014871364,0.14857368,101410.0,101400.0,0.55809]
[1738014871770,0.17765872,101410.0,101400.0,0.55809]
[1738014874571,0.17765872,101410.0,101400.0,2.05809]
[1738014875867,0.17765872,101410.0,101400.0,0.55809]
[1738014876265,0.17765872,101410.0,101400.0,2.05809]
[1738014881490,0.37492972,101410.0,101400.0,0.55809]
[1738014882182,0.46882972,101410.0,101400.0,0.55809]
[1738014886086,0.37492972,101410.0,101400.0,0.55809]
[1738014886281,0.17765872,101410.0,101400.0,0.55809]
[1738014886481,0.17765872,101410.0,101400.0,0.65150848]
[1738014887082,0.17765872,101410.0,101400.0,0.74492696]
[1738014887489,0.17765872,101410.0,101400.0,0.65150848]
[1738014887690,0.17765872,101410.0,101400.0,2.15150848]
[1738014888284,0.17565872,101410.0,101400.0,2.15150848]
[1738014888589,0.17665872,101410.0,101400.0,2.15150848]
[1738014888786,0.16073247,101410.0,101400.0,2.24492696]
[1738014889098,0.43647392,101420.0,101400.0,2.34763696]
[1738014889394,0.43647392,101420.0,101410.0,0.65148948]
[1738014889982,0.00147922,101460.0,101450.0,0.197193]
[1738014890183,0.00147922,101460.0,101450.0,0.65141148]
[1738014890379,0.00147922,101460.0,101450.0,0.81201148]
[1738014890578,0.00147922,101460.0,101450.0,2.218593]
[1738014890795,0.2920717,101460.0,101450.0,0.557993]
[1738014891190,0.2920717,101460.0,101450.0,0.197193]
[1738014891490,0.2930717,101460.0,101450.0,0.197193]
[1738014891892,0.19965322,101460.0,101450.0,0.197193]
[1738014892485,0.19965322,101460.0,101450.0,0.557993]
[1738014893186,0.0958977,101460.0,101440.0,0.55814848]
[1738014893393,0.29061148,101450.0,101440.0,0.00014848]
[1738014893691,0.80811148,101450.0,101440.0,0.00014848]
[1738014893888,0.197212,101440.0,101430.0,0.3608]
[1738014894089,0.197232,101430.0,101420.0,0.00147885]
[1738014894284,0.65145048,101430.0,101420.0,0.00147885]
[1738014894795,0.45421848,101430.0,101410.0,0.558063]
[1738014894995,0.45616948,101420.0,101410.0,0.558063]
[1738014895187,0.45616948,101420.0,101410.0,0.55821148]
[1738014895385,0.81596948,101420.0,101410.0,0.19741148]
[1738014895685,0.81596948,101420.0,101410.0,0.00014848]
[1738014896488,0.81596948,101420.0,101410.0,0.19741948]
[1738014897293,0.197251,101420.0,101410.0,0.55821948]
[1738014897498,0.37240796,101430.0,101420.0,0.197251]
[1738014897693,0.27898948,101430.0,101420.0,0.558051]
[1738014897997,0.37240796,101430.0,101420.0,0.558051]
[1738014898589,0.37340796,101430.0,101420.0,0.558051]
[1738014898886,0.27998948,101430.0,101420.0,0.558051]
[1738014899293,0.08274848,101430.0,101420.0,0.558051]
[1738014899493,0.00114848,101430.0,101420.0,2.058051]
[1738014899695,0.00114848,101430.0,101420.0,2.15146948]
[1738014900087,0.278795,101450.0,101420.0,1.95421848]
[1738014900294,0.19865622,101460.0,101440.0,0.45421848]
[1738014900591,0.00147922,101460.0,101450.0,0.557993]
[1738014900785,0.00147922,101460.0,101450.0,0.641593]
[1738014901196,0.31959824,101490.0,101480.0,0.197135]
[1738014901494,0.31959824,101490.0,101480.0,0.557935]
[1738014901697,0.61013172,101490.0,101480.0,0.557935]
[1738014902084,0.69073172,101490.0,101480.0,0.557935]
[1738014902401,0.37113348,101490.0,101480.0,0.557935]
[1738014902599,0.41765726,101490.0,101480.0,0.557935]
[1738014902893,0.41765726,101490.0,101470.0,0.19729148]
[1738014903091,0.41765726,101490.0,101470.0,1.69729148]
[1738014903396,0.33707726,101480.0,101470.0,0.19729148]
[1738014904294,0.58134226,101490.0,101470.0,0.36094848]
[1738014904597,0.640522,101490.0,101480.0,0.197135]
[1738014905002,0.0826,101490.0,101480.0,0.557935]
[1738014905195,0.1,101500.0,101480.0,0.50074226]
[1738014905498,0.1,101500.0,101490.0,0.557915]
[1738014907302,0.102,101500.0,101490.0,0.557915]
[1738014907602,0.102,101500.0,101490.0,0.558915]
[1738014908197,0.103,101500.0,101490.0,0.558915]
[1738014909294,0.103,101500.0,101490.0,0.69885726]
[1738014909506,0.27366,101520.0,101490.0,2.05102026]
[1738014909696,0.27366,101520.0,101510.0,0.3608]
[1738014909997,0.27366,101520.0,101510.0,0.197076]
[1738014910203,0.27366,101520.0,101510.0,0.557876]
[1738014910901,0.27566,101520.0,101510.0,0.557876]
[1738014911102,0.27566,101520.0,101510.0,0.558876]
[1738014911605,0.41760226,101520.0,101510.0,0.558876]
[1738014912099,0.27766,101520.0,101510.0,0.557876]
[1738014912300,0.0806,101520.0,101510.0,0.557876]
[1738014912995,0.004,101520.0,101510.0,0.630376]
[1738014913395,0.33846457,101530.0,101510.0,0.4333]
[1738014913602,0.13994226,101520.0,101510.0,0.3608]
[1738014913806,0.33846257,101530.0,101520.0,0.197057]
[1738014914602,0.33946257,101530.0,101520.0,0.197057]
[1738014915206,0.33946257,101530.0,101520.0,0.198057]
[1738014915601,0.19952031,101530.0,101520.0,0.198057]
[1738014915795,0.00247831,101530.0,101520.0,0.198057]
[1738014916401,0.19951631,101530.0,101520.0,0.198057]
[1738014917103,0.00147831,101530.0,101520.0,0.198057]
[1738014917404,0.00447831,101530.0,101520.0,0.558857]
[1738014917609,0.003,101530.0,101520.0,0.558857]
[1738014917811,0.003,101530.0,101520.0,0.632757]
[1738014918510,0.003,101530.0,101520.0,0.631757]
[1738014918710,0.269029,101540.0,101520.0,0.4347]
[1738014918897,0.001,101530.0,101520.0,0.631757]
[1738014919603,0.63779,101560.0,101540.0,0.197001]
[1738014919804,0.63779,101560.0,101540.0,0.3608]
[1738014920010,0.63779,101560.0,101550.0,0.196999]
[1738014920212,0.71619,101560.0,101550.0,0.196999]
[1738014920405,0.85613226,101560.0,101550.0,0.196999]
[1738014920802,0.71619,101560.0,101550.0,0.196999]
[1738014921399,0.196999,101550.0,101540.0,0.19716174]
[1738014921599,0.33694126,101550.0,101540.0,0.19716174]
[1738014921811,0.69774126,101550.0,101540.0,0.00014774]
[1738014922008,0.69774126,101550.0,101540.0,0.00114774]
[1738014922809,0.69774126,101550.0,101540.0,0.00014774]
[1738014924306,0.69874126,101550.0,101540.0,0.00014774]
[1738014927111,0.50174226,101550.0,101510.0,0.61076582]
[1738014927312,0.83774152,101520.0,101510.0,0.41369282]
[1738014927610,0.69779926,101520.0,101510.0,0.41369282]
[1738014927808,0.91989926,101520.0,101510.0,0.41369282]
[1738014928003,1.05984152,101520.0,101510.0,0.29589282]
[1738014928210,0.197077,101510.0,101500.0,0.29549487]
[1738014928419,0.69781926,101510.0,101500.0,0.29564261]
[1738014928712,0.33701926,101510.0,101500.0,0.29564261]
[1738014928911,0.33701926,101510.0,101500.0,0.49273861]
[1738014929113,0.197077,101510.0,101500.0,0.49273861]
[1738014930109,0.197077,101510.0,101500.0,0.19724374]
[1738014930621,0.41917,101520.0,101510.0,0.197077]
[1738014930815,0.41917,101520.0,101510.0,0.557877]
[1738014931024,0.19707,101520.0,101510.0,0.557877]
[1738014931814,0.55014754,101530.0,101510.0,0.557877]
[1738014931815,0.50088754,101530.0,101510.0,0.3608]
[1738014932015,0.19719228,101530.0,101520.0,0.197057]
[1738014932219,0.00014528,101530.0,101520.0,0.557857]
[1738014932412,0.19718328,101530.0,101520.0,0.633357]
[1738014932612,0.19718328,101530.0,101520.0,0.272557]
[1738014933331,0.20118328,101530.0,101520.0,0.633357]
[1738014933620,0.00414528,101530.0,101520.0,0.633357]
[1738014934914,0.00414528,101530.0,101520.0,0.27239934]
[1738014935113,0.20118328,101530.0,101520.0,0.27239934]
[1738014935321,0.20218328,101530.0,101520.0,0.63319934]
[1738014936421,0.20218328,101530.0,101520.0,1.73241098]
[1738014936918,0.20218328,101530.0,101520.0,1.37161098]
[1738014937308,0.19484253,101530.0,101520.0,1.73241098]
[1738014938011,0.19484253,101530.0,101520.0,1.74233986]
[1738014938722,0.001,101530.0,101520.0,1.74233986]
[1738014939116,0.198038,101530.0,101520.0,1.74233986]
[1738014939714,0.198038,101530.0,101520.0,1.38153986]
[1738014940214,0.198038,101530.0,101520.0,1.74233986]
[1738014944221,0.001,101530.0,101520.0,1.74233986]
[1738014944927,0.001,101530.0,101520.0,1.38774601]
[1738014945526,0.198038,101530.0,101520.0,1.38774601]
[1738014946115,0.198038,101530.0,101520.0,1.02694601]
[1738014946315,0.198038,101530.0,101520.0,1.38774601]
[1738014947925,0.29124503,101530.0,101520.0,0.94151713]
[1738014948322,0.29124503,101530.0,101520.0,0.19689934]
[1738014948523,0.198038,101530.0,101520.0,0.19689934]
[1738014949033,0.198038,101530.0,101520.0,0.55769934]
[1738014949533,0.001,101530.0,101520.0,0.55769934]
[1738014950732,0.19703,101540.0,101530.0,0.197038]
[1738014954731,0.19803,101540.0,101530.0,0.197038]
[1738014955521,0.19803,101540.0,101530.0,0.29024503]
[1738014955727,0.001,101540.0,101530.0,0.72544503]
[1738014956131,0.001,101540.0,101530.0,2.22544503]
[1738014956734,0.001,101540.0,101530.0,0.72544503]
[1738014957037,0.001,101540.0,101530.0,2.22544503]
[1738014957925,0.001,101540.0,101530.0,2.132238]
[1738014958835,0.001,101540.0,101530.0,2.14216562]
[1738014959537,0.001,101540.0,101530.0,2.23537265]
[1738014961435,0.7281558,101570.0,101560.0,0.19698]
[1738014962832,0.7331558,101570.0,101560.0,0.19798]
[1738014963333,0.3723558,101570.0,101560.0,0.19798]
[1738014963536,0.27914877,101570.0,101560.0,0.19798]
[1738014963942,0.27514877,101570.0,101560.0,0.19798]
[1738014964133,0.27714877,101570.0,101560.0,0.55878]
[1738014964330,0.3693558,101570.0,101560.0,0.19698]
[1738014964630,0.7301558,101570.0,101560.0,0.001]
[1738014965037,0.196979,101560.0,101550.0,0.00014774]
[1738014965239,0.65098603,101560.0,101550.0,0.00014774]
[1738014966537,1.01278603,101560.0,101550.0,0.00014774]
[1738014967746,1.01378603,101560.0,101550.0,0.00014774]
[1738014967943,1.10699306,101560.0,101550.0,0.00014774]
[1738014968136,1.10699306,101560.0,101550.0,1e-08]
[1738014968536,1.01378603,101560.0,101550.0,1e-08]
[1738014969233,0.65298603,101560.0,101550.0,0.19699901]
[1738014969438,0.65298603,101560.0,101550.0,1e-08]
[1738014969739,0.66280774,101560.0,101550.0,1e-08]
[1738014970346,1.02360774,101560.0,101550.0,1e-08]
[1738014971240,1.11681477,101560.0,101550.0,1e-08]
[1738014971446,1.41681477,101560.0,101550.0,1e-08]
[1738014973038,1.11681477,101560.0,101550.0,1e-08]
[1738014973435,1.41681477,101560.0,101550.0,1e-08]
[1738014973947,1.11681477,101560.0,101550.0,1e-08]
[1738014974444,1.41681477,101560.0,101550.0,1e-08]
[1738014975846,0.049256,101540.0,101510.0,1.94570986]
[1738014976046,0.29026403,101520.0,101510.0,2.14277586]
[1738014976642,0.16440703,101530.0,101510.0,1.94570986]
[1738014976955,0.557826,101540.0,101530.0,0.197038]
[1738014977142,0.23810703,101550.0,101530.0,0.3608]
[1738014977347,0.36601703,101550.0,101540.0,0.197018]
[1738014977547,0.36616477,101550.0,101540.0,1.697018]
[1738014977850,0.36616477,101550.0,101540.0,0.197018]
[1738014979049,0.36716477,101550.0,101540.0,0.197018]
[1738014979260,0.72796477,101550.0,101540.0,0.197018]
[1738014979751,0.36716477,101550.0,101540.0,0.197018]
[1738014980345,0.72796477,101550.0,101540.0,0.197018]
[1738014980548,0.36716477,101550.0,101540.0,0.197018]
[1738014980743,0.72796477,101550.0,101540.0,0.197018]
[1738014980952,0.72796477,101550.0,101530.0,2.05560674]
[1738014980953,0.2633618,101550.0,101530.0,0.43394774]
[1738014981157,0.65102503,101540.0,101530.0,0.19718574]
[1738014981950,0.65102503,101540.0,101530.0,0.00014774]
[1738014982355,0.65102503,101540.0,101530.0,0.00214774]
[1738014982956,0.66075019,101540.0,101530.0,0.00314774]
[1738014983459,0.73685019,101540.0,101530.0,0.00314774]
[1738014983761,0.37605019,101540.0,101530.0,0.00314774]
[1738014984657,0.73685019,101540.0,101530.0,0.00314774]
[1738014989853,0.37605019,101540.0,101530.0,0.00314774]
[1738014990452,0.73685019,101540.0,101530.0,0.00314774]
[1738014992966,0.29995019,101540.0,101530.0,0.20018574]
[1738014993354,0.66075019,101540.0,101530.0,0.20018574]
[1738014993555,0.29995019,101540.0,101530.0,0.20018574]
[1738014993956,0.66075019,101540.0,101530.0,0.20018574]
[1738014994352,0.197018,101540.0,101530.0,0.20018574]
[1738014994759,0.29022503,101540.0,101530.0,0.20018574]
[1738014996857,0.29022503,101540.0,101530.0,0.20990264]
[1738014997261,0.65102503,101540.0,101530.0,0.20990264]
[1738014997463,0.29022503,101540.0,101530.0,0.20018574]
[1738014997663,0.65102503,101540.0,101530.0,0.20018574]
[1738015001474,0.65102503,101540.0,101530.0,0.00314774]
[1738015002272,0.72612503,101540.0,101530.0,0.00314774]
[1738015006270,0.72612503,101540.0,101530.0,0.20018574]
[1738015006587,0.65102503,101540.0,101530.0,0.20018574]
[1738015006884,0.197018,101540.0,101530.0,0.56098574]
[1738015009687,0.29022503,101540.0,101530.0,0.56098574]
[1738015009887,0.29022503,101540.0,101530.0,0.20018574]
[1738015017175,0.29022503,101540.0,101530.0,0.00314774]
[1738015017382,0.65102503,101540.0,101530.0,0.00314774]
[1738015017688,0.66091031,101540.0,101530.0,0.00314774]
[1738015019284,0.30011031,101540.0,101530.0,0.20018574]
[1738015019594,0.29022503,101540.0,101530.0,0.20018574]
[1738015019795,0.29022503,101540.0,101530.0,0.00314774]
[1738015019985,0.65102503,101540.0,101530.0,0.00314774]
[1738015020189,0.29022503,101540.0,101530.0,0.00314774]
[1738015021589,0.65102503,101540.0,101530.0,0.00314774]
[1738015021779,0.29022503,101540.0,101530.0,0.00314774]
[1738015021982,0.65102503,101540.0,101530.0,0.00314774]
[1738015023292,0.557818,101540.0,101530.0,0.20018574]
[1738015023487,0.65102503,101540.0,101530.0,0.00314774]
[1738015028596,0.84721406,101540.0,101500.0,0.00985526]
[1738015028886,0.84721406,101540.0,101490.0,0.87281894]
[1738015028887,0.197096,101500.0,101490.0,0.87281894]
[1738015029095,0.65110303,101500.0,101490.0,0.67571394]
[1738015029289,0.29030303,101500.0,101490.0,1.23362994]
[1738015029499,0.29030303,101500.0,101490.0,0.87282994]